[Event "*** Titled Tuesday Blitz"]
[Site "Chess.com"]
[Date "2020.11.03"]
[Round "3"]
[White "Margarita2907"]
[Black "Gerodot71"]
[Result "0-1"]
[WhiteElo "2216"]
[BlackElo "2489"]
[TimeControl "180+1"]
[EndTime "10:27:20 PST"]
[Termination "Gerodot71 won by checkmate"]

1. e4 {[%clk 0:03:00.9]} 1... e5 {[%clk 0:02:59.8]} 2. Nf3 {[%clk 0:02:59.6]}
2... Nc6 {[%clk 0:03:00.4]} 3. Bc4 {[%clk 0:02:58.8]} 3... Bc5 {[%clk
0:02:59.7]} 4. d3 {[%clk 0:02:56.9]} 4... Nf6 {[%clk 0:02:59]} 5. O-O {[%clk
0:02:56.4]} 5... d6 {[%clk 0:02:56]} 6. c3 {[%clk 0:02:54.9]} 6... a6 {[%clk
0:02:56.2]} 7. a4 {[%clk 0:02:53.5]} 7... Ba7 {[%clk 0:02:56.1]} 8. Nbd2 {[%clk
0:02:47.2]} 8... h6 {[%clk 0:02:55]} 9. h3 {[%clk 0:02:42.2]} 9... g5 {[%clk
0:02:54.5]} 10. Nh2 {[%clk 0:02:36.2]} 10... h5 {[%clk 0:02:52.6]} 11. Re1
{[%clk 0:02:11.7]} 11... g4 {[%clk 0:02:49.7]} 12. hxg4 {[%clk 0:02:08.1]} 12...
Nxg4 {[%clk 0:02:50.6]} 13. Rf1 {[%clk 0:01:49.5]} 13... Qh4 {[%clk 0:02:47.6]}
14. Ndf3 {[%clk 0:01:38.2]} 14... Bxf2+ {[%clk 0:02:38.2]} 15. Kh1 {[%clk
0:01:34.5]} 15... Qg3 {[%clk 0:02:38.6]} 16. Bd2 {[%clk 0:01:09.7]} 16... Rg8
{[%clk 0:02:33.1]} 17. Qe2 {[%clk 0:01:04.8]} 17... Bb6 {[%clk 0:02:13]} 18. Be1
{[%clk 0:00:59.3]} 18... Nf2+ {[%clk 0:02:05.4]} 19. Bxf2 {[%clk 0:00:56.9]}
19... Qxg2# {[%clk 0:02:05.3]} 0-1

[Event "*** Titled Tuesday Blitz"]
[Site "Chess.com"]
[Date "2020.11.03"]
[Round "3"]
[White "InitiatingASC"]
[Black "enestnrvrd"]
[Result "0-1"]
[WhiteElo "2383"]
[BlackElo "2609"]
[TimeControl "180+1"]
[EndTime "10:27:22 PST"]
[Termination "enestnrvrd won by resignation"]

1. Nf3 {[%clk 0:03:00.9]} 1... Nf6 {[%clk 0:02:59.8]} 2. g3 {[%clk 0:03:01.2]}
2... d5 {[%clk 0:03:00.1]} 3. Bg2 {[%clk 0:03:02.1]} 3... c5 {[%clk 0:03:00.5]}
4. O-O {[%clk 0:02:57.8]} 4... Nc6 {[%clk 0:03:01]} 5. c4 {[%clk 0:02:56]} 5...
d4 {[%clk 0:03:00]} 6. e3 {[%clk 0:02:54.4]} 6... e5 {[%clk 0:03:00.1]} 7. exd4
{[%clk 0:02:54.2]} 7... exd4 {[%clk 0:03:01]} 8. Re1+ {[%clk 0:02:50.7]} 8...
Be7 {[%clk 0:03:01.3]} 9. d3 {[%clk 0:02:50.7]} 9... O-O {[%clk 0:03:01.7]} 10.
a3 {[%clk 0:02:48.6]} 10... Bf5 {[%clk 0:02:59.8]} 11. Nh4 {[%clk 0:02:45.9]}
11... Bg4 {[%clk 0:02:52.9]} 12. Qc2 {[%clk 0:02:40.7]} 12... Qd7 {[%clk
0:02:52.6]} 13. Nd2 {[%clk 0:02:36.3]} 13... Rae8 {[%clk 0:02:49.7]} 14. Nf1
{[%clk 0:02:31.4]} 14... h6 {[%clk 0:02:46.6]} 15. Bd2 {[%clk 0:02:23.1]} 15...
g5 {[%clk 0:02:43.8]} 16. Nf3 {[%clk 0:02:21.3]} 16... Qf5 {[%clk 0:02:39.6]}
17. Rxe7 {[%clk 0:01:59.5]} 17... Rxe7 {[%clk 0:02:37.9]} 18. Ne1 {[%clk
0:01:58.6]} 18... Rfe8 {[%clk 0:02:36.8]} 19. b4 {[%clk 0:01:55.9]} 19... Ne5
{[%clk 0:02:30.4]} 20. bxc5 {[%clk 0:01:37.3]} 20... Nf3+ {[%clk 0:02:30]} 21.
Nxf3 {[%clk 0:01:26.8]} 21... Bxf3 {[%clk 0:02:30.9]} 22. c6 {[%clk 0:00:49.1]}
22... bxc6 {[%clk 0:02:28.9]} 0-1

[Event "*** Titled Tuesday Blitz"]
[Site "Chess.com"]
[Date "2020.11.03"]
[Round "3"]
[White "pedromartinez91"]
[Black "Aleksandar-Topalov"]
[Result "1-0"]
[WhiteElo "2591"]
[BlackElo "2376"]
[TimeControl "180+1"]
[EndTime "10:27:33 PST"]
[Termination "pedromartinez91 won by resignation"]

1. b3 {[%clk 0:03:00.9]} 1... Nf6 {[%clk 0:02:59.7]} 2. Bb2 {[%clk 0:03:01.2]}
2... g6 {[%clk 0:03:00.2]} 3. Bxf6 {[%clk 0:03:01.4]} 3... exf6 {[%clk
0:03:00.4]} 4. d4 {[%clk 0:03:02.3]} 4... f5 {[%clk 0:02:57.8]} 5. e3 {[%clk
0:03:02.6]} 5... h5 {[%clk 0:02:53.2]} 6. Nf3 {[%clk 0:03:02.3]} 6... Bh6 {[%clk
0:02:53.4]} 7. g3 {[%clk 0:03:01.5]} 7... O-O {[%clk 0:02:53.3]} 8. h4 {[%clk
0:03:00.7]} 8... d6 {[%clk 0:02:53.4]} 9. Nbd2 {[%clk 0:03:00.5]} 9... Nd7
{[%clk 0:02:53.7]} 10. Bg2 {[%clk 0:03:00.7]} 10... Nf6 {[%clk 0:02:53.7]} 11.
c4 {[%clk 0:03:00.6]} 11... Ng4 {[%clk 0:02:53.8]} 12. O-O {[%clk 0:02:52.6]}
12... Re8 {[%clk 0:02:52.1]} 13. Re1 {[%clk 0:02:41.9]} 13... c6 {[%clk
0:02:52.1]} 14. b4 {[%clk 0:02:40.7]} 14... a6 {[%clk 0:02:51]} 15. a4 {[%clk
0:02:40.3]} 15... Bd7 {[%clk 0:02:51.2]} 16. Qb3 {[%clk 0:02:33.3]} 16... b5
{[%clk 0:02:45.4]} 17. axb5 {[%clk 0:02:30.3]} 17... axb5 {[%clk 0:02:45.4]} 18.
cxb5 {[%clk 0:02:26]} 18... cxb5 {[%clk 0:02:42.5]} 19. Rxa8 {[%clk 0:02:24.4]}
19... Qxa8 {[%clk 0:02:42.4]} 20. Ne5 {[%clk 0:02:24.7]} 20... Be6 {[%clk
0:02:42.1]} 21. Bxa8 {[%clk 0:02:05.3]} 21... Bxb3 {[%clk 0:02:41.2]} 22. Nxg4
{[%clk 0:02:05.3]} 22... hxg4 {[%clk 0:02:38.7]} 23. Bc6 {[%clk 0:01:58.8]}
23... Rc8 {[%clk 0:02:38.7]} 24. Bxb5 {[%clk 0:01:58.1]} 24... Rb8 {[%clk
0:02:38.9]} 25. Bd3 {[%clk 0:01:52.8]} 25... d5 {[%clk 0:02:32.7]} 26. b5 {[%clk
0:01:51.6]} 26... Ba4 {[%clk 0:02:32.5]} 27. Ra1 {[%clk 0:01:46.6]} 27... Bxb5
{[%clk 0:02:31.5]} 28. Rb1 {[%clk 0:01:45.8]} 28... Bxd3 {[%clk 0:02:31.7]} 29.
Rxb8+ {[%clk 0:01:46.4]} 29... Kg7 {[%clk 0:02:31]} 30. Rd8 {[%clk 0:01:43.2]}
30... Be4 {[%clk 0:02:28.7]} 31. Nxe4 {[%clk 0:01:43.5]} 31... dxe4 {[%clk
0:02:29.2]} 32. Kf1 {[%clk 0:01:36.3]} 32... Kf6 {[%clk 0:02:29.5]} 33. Ke2
{[%clk 0:01:35.5]} 33... Ke7 {[%clk 0:02:29.7]} 34. Ra8 {[%clk 0:01:31.2]} 34...
g5 {[%clk 0:02:27.8]} 35. Ra6 {[%clk 0:01:24.2]} 35... f6 {[%clk 0:02:26.9]} 36.
Ra7+ {[%clk 0:01:24.2]} 36... Ke6 {[%clk 0:02:27.2]} 37. h5 {[%clk 0:01:17.8]}
37... f4 {[%clk 0:02:26.6]} 38. Rh7 {[%clk 0:01:10.1]} 1-0

[Event "*** Titled Tuesday Blitz"]
[Site "Chess.com"]
[Date "2020.11.03"]
[Round "3"]
[White "anasta10"]
[Black "ecwinslow"]
[Result "1-0"]
[WhiteElo "2386"]
[BlackElo "2192"]
[TimeControl "180+1"]
[EndTime "10:27:42 PST"]
[Termination "anasta10 won by resignation"]

1. Nf3 {[%clk 0:02:51]} 1... Nf6 {[%clk 0:02:58.5]} 2. d4 {[%clk 0:02:51.8]}
2... g6 {[%clk 0:02:58]} 3. c4 {[%clk 0:02:52.3]} 3... Bg7 {[%clk 0:02:57.9]} 4.
Nc3 {[%clk 0:02:53.2]} 4... O-O {[%clk 0:02:58]} 5. e4 {[%clk 0:02:52.5]} 5...
d6 {[%clk 0:02:58.4]} 6. h3 {[%clk 0:02:52.7]} 6... c5 {[%clk 0:02:56.3]} 7. d5
{[%clk 0:02:52.3]} 7... e6 {[%clk 0:02:56.5]} 8. Be2 {[%clk 0:02:51.4]} 8...
exd5 {[%clk 0:02:56]} 9. exd5 {[%clk 0:02:51.7]} 9... Re8 {[%clk 0:02:54.4]} 10.
O-O {[%clk 0:02:52.1]} 10... a6 {[%clk 0:02:39.7]} 11. Re1 {[%clk 0:02:52.4]}
11... Nbd7 {[%clk 0:02:38.8]} 12. a4 {[%clk 0:02:51.9]} 12... Ne5 {[%clk
0:02:33.6]} 13. Nxe5 {[%clk 0:02:50.8]} 13... Rxe5 {[%clk 0:02:34.1]} 14. Bf4
{[%clk 0:02:51.2]} 14... Re8 {[%clk 0:02:30.5]} 15. Bd3 {[%clk 0:02:46.6]} 15...
Nh5 {[%clk 0:02:27.3]} 16. Bh2 {[%clk 0:02:44.8]} 16... Be5 {[%clk 0:02:07.6]}
17. Bxe5 {[%clk 0:02:42.5]} 17... dxe5 {[%clk 0:02:04.1]} 18. Bf1 {[%clk
0:02:37]} 18... f5 {[%clk 0:01:58.6]} 19. d6 {[%clk 0:02:29.7]} 19... Nf6 {[%clk
0:01:45]} 20. Qd2 {[%clk 0:02:16.4]} 20... Bd7 {[%clk 0:01:36]} 21. Rad1 {[%clk
0:02:14.1]} 21... Re6 {[%clk 0:01:27.8]} 22. Nd5 {[%clk 0:01:47.2]} 22... Kg7
{[%clk 0:01:17.9]} 23. Nc7 {[%clk 0:01:41]} 23... Rc8 {[%clk 0:01:09.5]} 24.
Nxe6+ {[%clk 0:01:40.2]} 24... Bxe6 {[%clk 0:01:08.7]} 25. Rxe5 {[%clk
0:01:40.7]} 1-0

[Event "*** Titled Tuesday Blitz"]
[Site "Chess.com"]
[Date "2020.11.03"]
[Round "3"]
[White "DonPreuss"]
[Black "Manukyan_Artak"]
[Result "0-1"]
[WhiteElo "2216"]
[BlackElo "2432"]
[TimeControl "180+1"]
[EndTime "10:27:48 PST"]
[Termination "Manukyan_Artak won by resignation"]

1. d4 {[%clk 0:03:00.9]} 1... Nf6 {[%clk 0:02:55.6]} 2. Nc3 {[%clk 0:03:00.3]}
2... d5 {[%clk 0:02:55.8]} 3. e4 {[%clk 0:03:00.3]} 3... dxe4 {[%clk 0:02:55.6]}
4. f3 {[%clk 0:03:00.6]} 4... e3 {[%clk 0:02:54.6]} 5. Bxe3 {[%clk 0:02:59.9]}
5... Bf5 {[%clk 0:02:54]} 6. Nge2 {[%clk 0:02:59.6]} 6... e6 {[%clk 0:02:53.7]}
7. Ng3 {[%clk 0:03:00.1]} 7... Bg6 {[%clk 0:02:53.5]} 8. Bd3 {[%clk 0:03:00.6]}
8... Nbd7 {[%clk 0:02:50.3]} 9. O-O {[%clk 0:03:00]} 9... c5 {[%clk 0:02:48.1]}
10. Bb5 {[%clk 0:02:30.7]} 10... a6 {[%clk 0:02:46.2]} 11. Bd3 {[%clk
0:02:20.4]} 11... cxd4 {[%clk 0:02:44.2]} 12. Bxd4 {[%clk 0:02:20.5]} 12... Bc5
{[%clk 0:02:44]} 13. Bxg6 {[%clk 0:02:18.4]} 13... hxg6 {[%clk 0:02:43.5]} 14.
Nce4 {[%clk 0:02:16]} 14... Bxd4+ {[%clk 0:02:38.8]} 15. Qxd4 {[%clk 0:02:15.8]}
15... O-O {[%clk 0:02:38.3]} 16. Rad1 {[%clk 0:02:07.3]} 16... Qc7 {[%clk
0:02:36.6]} 17. c3 {[%clk 0:02:04.2]} 17... Rad8 {[%clk 0:02:32.9]} 18. Qd6
{[%clk 0:02:03.4]} 18... Qc8 {[%clk 0:02:26.2]} 19. Qb4 {[%clk 0:01:52.3]} 19...
Nd5 {[%clk 0:02:14.9]} 20. Qa5 {[%clk 0:01:38.8]} 20... Ne3 {[%clk 0:02:07.8]}
21. Nd6 {[%clk 0:01:31.4]} 21... Qc6 {[%clk 0:01:53.1]} 22. h4 {[%clk
0:01:06.7]} 22... Nxf1 {[%clk 0:01:49.3]} 23. Kxf1 {[%clk 0:01:04.7]} 23... Nf6
{[%clk 0:01:44]} 0-1

[Event "*** Titled Tuesday Blitz"]
[Site "Chess.com"]
[Date "2020.11.03"]
[Round "3"]
[White "Svet99"]
[Black "AleksanderHnydiuk"]
[Result "0-1"]
[WhiteElo "2183"]
[BlackElo "2483"]
[TimeControl "180+1"]
[EndTime "10:27:49 PST"]
[Termination "AleksanderHnydiuk won on time"]

1. Nf3 {[%clk 0:03:00.9]} 1... c5 {[%clk 0:02:59.4]} 2. g3 {[%clk 0:03:01.2]}
2... g6 {[%clk 0:02:58.4]} 3. Bg2 {[%clk 0:03:02.1]} 3... Bg7 {[%clk 0:02:59]}
4. O-O {[%clk 0:03:02.2]} 4... Nc6 {[%clk 0:02:59.3]} 5. e4 {[%clk 0:03:01]}
5... e5 {[%clk 0:02:51.6]} 6. c4 {[%clk 0:03:00.7]} 6... Nge7 {[%clk 0:02:50.5]}
7. Nc3 {[%clk 0:03:00.6]} 7... O-O {[%clk 0:02:49.8]} 8. Nd5 {[%clk 0:03:00.8]}
8... d6 {[%clk 0:02:49.4]} 9. d3 {[%clk 0:03:01]} 9... h6 {[%clk 0:02:48.2]} 10.
Bd2 {[%clk 0:02:58.6]} 10... f5 {[%clk 0:02:46.8]} 11. a3 {[%clk 0:02:57.3]}
11... Be6 {[%clk 0:02:34.3]} 12. b4 {[%clk 0:02:55.4]} 12... Qd7 {[%clk
0:02:12.3]} 0-1

[Event "*** Titled Tuesday Blitz"]
[Site "Chess.com"]
[Date "2020.11.03"]
[Round "3"]
[White "goldenpuppy"]
[Black "CzechmVIII"]
[Result "1-0"]
[WhiteElo "2355"]
[BlackElo "2146"]
[TimeControl "180+1"]
[EndTime "10:27:56 PST"]
[Termination "goldenpuppy won on time"]

1. e4 {[%clk 0:03:00.9]} 1... c5 {[%clk 0:02:59.8]} 2. Nf3 {[%clk 0:02:54.9]}
2... d6 {[%clk 0:02:59.7]} 3. d4 {[%clk 0:02:55.2]} 3... cxd4 {[%clk 0:03:00]}
4. Nxd4 {[%clk 0:02:55.9]} 4... Nf6 {[%clk 0:03:00.4]} 5. Nc3 {[%clk 0:02:56.1]}
5... g6 {[%clk 0:03:00.8]} 6. Be3 {[%clk 0:02:55]} 6... Bg7 {[%clk 0:03:00.9]}
7. f3 {[%clk 0:02:55.5]} 7... Nc6 {[%clk 0:03:01.2]} 8. Qd2 {[%clk 0:02:55.8]}
8... O-O {[%clk 0:03:01.2]} 9. Bc4 {[%clk 0:02:55.9]} 9... Bd7 {[%clk
0:03:00.9]} 10. O-O-O {[%clk 0:02:54.4]} 10... Rc8 {[%clk 0:03:01.1]} 11. Bb3
{[%clk 0:02:53.7]} 11... Ne5 {[%clk 0:03:01.3]} 12. h4 {[%clk 0:02:53.7]} 12...
h5 {[%clk 0:03:00.7]} 13. Bg5 {[%clk 0:02:49.2]} 13... Rc5 {[%clk 0:02:59.4]}
14. Kb1 {[%clk 0:02:48.6]} 14... a5 {[%clk 0:02:58.7]} 15. g4 {[%clk 0:02:44.1]}
15... hxg4 {[%clk 0:02:58]} 16. h5 {[%clk 0:02:43.8]} 16... Nxh5 {[%clk
0:02:58.1]} 17. Bh6 {[%clk 0:02:43.6]} 17... Rxc3 {[%clk 0:02:18.9]} 18. Rxh5
{[%clk 0:02:41]} 18... Bxh6 {[%clk 0:00:40.6]} 19. Qxh6 {[%clk 0:02:37.5]} 19...
gxh5 {[%clk 0:00:40.6]} 20. Qxh5 {[%clk 0:02:36.3]} 20... Rxb3 {[%clk
0:00:36.6]} 21. Rh1 {[%clk 0:02:33.7]} 21... Rxb2+ {[%clk 0:00:29]} 22. Kxb2
{[%clk 0:02:27.5]} 22... Qb6+ {[%clk 0:00:24.5]} 23. Kc1 {[%clk 0:02:25.1]} 1-0

[Event "*** Titled Tuesday Blitz"]
[Site "Chess.com"]
[Date "2020.11.03"]
[Round "3"]
[White "Tactictic"]
[Black "oneshot007"]
[Result "1-0"]
[WhiteElo "2406"]
[BlackElo "2200"]
[TimeControl "180+1"]
[EndTime "10:28:21 PST"]
[Termination "Tactictic won by checkmate"]

1. e4 {[%clk 0:03:00.9]} 1... c5 {[%clk 0:03:00]} 2. Nf3 {[%clk 0:03:00.1]} 2...
Nc6 {[%clk 0:03:00.4]} 3. d4 {[%clk 0:03:01]} 3... cxd4 {[%clk 0:03:01.3]} 4.
Nxd4 {[%clk 0:03:01.7]} 4... Nf6 {[%clk 0:03:01.8]} 5. Nc3 {[%clk 0:03:02]} 5...
e5 {[%clk 0:03:02.1]} 6. Ndb5 {[%clk 0:03:02.6]} 6... d6 {[%clk 0:03:02.6]} 7.
Bg5 {[%clk 0:03:03.3]} 7... a6 {[%clk 0:03:02.9]} 8. Na3 {[%clk 0:03:04]} 8...
b5 {[%clk 0:03:03.3]} 9. Nd5 {[%clk 0:03:03.9]} 9... Be7 {[%clk 0:03:03]} 10.
Bxf6 {[%clk 0:03:04.2]} 10... Bxf6 {[%clk 0:03:03.9]} 11. c3 {[%clk 0:03:04.2]}
11... O-O {[%clk 0:03:03.3]} 12. Nc2 {[%clk 0:03:00.8]} 12... Bg5 {[%clk
0:03:03.4]} 13. a4 {[%clk 0:03:00.5]} 13... bxa4 {[%clk 0:03:03.9]} 14. Rxa4
{[%clk 0:02:59.3]} 14... a5 {[%clk 0:03:04.3]} 15. Bc4 {[%clk 0:02:52.5]} 15...
Rb8 {[%clk 0:03:04.2]} 16. b3 {[%clk 0:02:51.8]} 16... Kh8 {[%clk 0:02:56.1]}
17. h4 {[%clk 0:02:27.8]} 17... Bh6 {[%clk 0:01:56.5]} 18. g4 {[%clk 0:02:15.7]}
18... g6 {[%clk 0:01:56.7]} 19. h5 {[%clk 0:02:08.6]} 19... Qg5 {[%clk
0:01:49.4]} 20. Nce3 {[%clk 0:01:55.4]} 20... Bg7 {[%clk 0:01:29.1]} 21. Qf3
{[%clk 0:01:39.7]} 21... f5 {[%clk 0:00:42.7]} 22. hxg6 {[%clk 0:01:36.2]} 22...
fxg4 {[%clk 0:00:32.9]} 23. Rxh7+ {[%clk 0:01:34.7]} 23... Kg8 {[%clk
0:00:33.1]} 24. Ne7# {[%clk 0:01:35.6]} 1-0

[Event "*** Titled Tuesday Blitz"]
[Site "Chess.com"]
[Date "2020.11.03"]
[Round "3"]
[White "KyrgyzFighter"]
[Black "ChristianAlm"]
[Result "1/2-1/2"]
[WhiteElo "2357"]
[BlackElo "2547"]
[TimeControl "180+1"]
[EndTime "10:28:28 PST"]
[Termination "Game drawn by repetition"]

1. c4 {[%clk 0:03:00.9]} 1... c5 {[%clk 0:02:59.4]} 2. Nf3 {[%clk 0:03:00.8]}
2... Nf6 {[%clk 0:02:59.6]} 3. d4 {[%clk 0:03:01.2]} 3... cxd4 {[%clk
0:02:59.2]} 4. Nxd4 {[%clk 0:03:02.1]} 4... g6 {[%clk 0:02:59.2]} 5. g3 {[%clk
0:03:02.4]} 5... Bg7 {[%clk 0:02:59.4]} 6. Bg2 {[%clk 0:03:03.1]} 6... O-O
{[%clk 0:02:59.7]} 7. O-O {[%clk 0:03:03.7]} 7... Nc6 {[%clk 0:02:59.9]} 8. Nc3
{[%clk 0:03:04.3]} 8... Nxd4 {[%clk 0:02:55.7]} 9. Qxd4 {[%clk 0:03:05.2]} 9...
d6 {[%clk 0:02:56.3]} 10. Qd3 {[%clk 0:03:02.9]} 10... Be6 {[%clk 0:02:54.5]}
11. Bg5 {[%clk 0:02:59.8]} 11... Rc8 {[%clk 0:02:43.8]} 12. b3 {[%clk
0:02:59.2]} 12... Rc5 {[%clk 0:02:36]} 13. Be3 {[%clk 0:02:47.6]} 13... Bf5
{[%clk 0:02:29.9]} 14. Qd2 {[%clk 0:02:36.6]} 14... Rc8 {[%clk 0:02:09.9]} 15.
Bxb7 {[%clk 0:02:32.6]} 15... Rb8 {[%clk 0:02:04.9]} 16. Bg2 {[%clk 0:02:30.3]}
16... Qd7 {[%clk 0:02:00.5]} 17. Rac1 {[%clk 0:02:25.8]} 17... Bh3 {[%clk
0:01:55.7]} 18. Nd5 {[%clk 0:02:09.6]} 18... Bxg2 {[%clk 0:01:53.5]} 19. Nxf6+
{[%clk 0:02:06.1]} 19... Bxf6 {[%clk 0:01:54.4]} 20. Kxg2 {[%clk 0:02:06.3]}
20... a5 {[%clk 0:01:45.2]} 21. Qxa5 {[%clk 0:01:57.3]} 21... Ra8 {[%clk
0:01:44.4]} 22. Qd2 {[%clk 0:01:57.4]} 22... h5 {[%clk 0:01:41]} 23. h4 {[%clk
0:01:55.9]} 23... Bxh4 {[%clk 0:01:37]} 24. gxh4 {[%clk 0:01:28.8]} 24... Qg4+
{[%clk 0:01:36.4]} 25. Kh2 {[%clk 0:01:29.2]} 25... Qxh4+ {[%clk 0:01:37]} 26.
Kg2 {[%clk 0:01:29.5]} 26... Qg4+ {[%clk 0:01:30.9]} 27. Kh2 {[%clk 0:01:29.7]}
27... Qh4+ {[%clk 0:00:55]} 28. Kg2 {[%clk 0:01:29.3]} 28... Qg4+ {[%clk
0:00:47.4]} 29. Kh2 {[%clk 0:01:29.1]} 29... Qh4+ {[%clk 0:00:47.5]} 1/2-1/2

[Event "*** Titled Tuesday Blitz"]
[Site "Chess.com"]
[Date "2020.11.03"]
[Round "3"]
[White "anon102030"]
[Black "dawtonlms"]
[Result "1-0"]
[WhiteElo "2669"]
[BlackElo "2421"]
[TimeControl "180+1"]
[EndTime "10:28:30 PST"]
[Termination "anon102030 won by resignation"]

1. e4 {[%clk 0:03:00.9]} 1... e6 {[%clk 0:02:53.5]} 2. d3 {[%clk 0:02:58.7]}
2... d5 {[%clk 0:02:53.6]} 3. Nd2 {[%clk 0:02:58.9]} 3... c5 {[%clk 0:02:53.8]}
4. g3 {[%clk 0:02:59.1]} 4... Nf6 {[%clk 0:02:54.3]} 5. Bg2 {[%clk 0:02:59.4]}
5... Nc6 {[%clk 0:02:55]} 6. Ngf3 {[%clk 0:02:59]} 6... Be7 {[%clk 0:02:55.6]}
7. O-O {[%clk 0:02:58.7]} 7... b6 {[%clk 0:02:56.2]} 8. b3 {[%clk 0:02:59.2]}
8... Bb7 {[%clk 0:02:56.3]} 9. Bb2 {[%clk 0:02:59.8]} 9... Qc7 {[%clk
0:02:55.1]} 10. Qe2 {[%clk 0:02:59.2]} 10... h6 {[%clk 0:02:49.9]} 11. Rfe1
{[%clk 0:02:58.1]} 11... a6 {[%clk 0:02:40.1]} 12. exd5 {[%clk 0:02:57.2]} 12...
Nxd5 {[%clk 0:02:39.4]} 13. Bxg7 {[%clk 0:02:54.2]} 13... Rg8 {[%clk 0:02:38.5]}
14. Bb2 {[%clk 0:02:54.5]} 14... O-O-O {[%clk 0:02:37.4]} 15. Ne4 {[%clk
0:02:45.9]} 15... h5 {[%clk 0:02:35.6]} 16. h4 {[%clk 0:02:39.1]} 16... Nd4
{[%clk 0:02:08.2]} 17. Nxd4 {[%clk 0:02:36]} 17... cxd4 {[%clk 0:02:08.6]} 18.
Qxh5 {[%clk 0:02:28.8]} 18... Nf6 {[%clk 0:01:57.3]} 19. Qxf7 {[%clk 0:02:24.5]}
19... Nxe4 {[%clk 0:01:55.2]} 20. Qxe6+ {[%clk 0:02:16.5]} 20... Kb8 {[%clk
0:01:55.6]} 21. Rxe4 {[%clk 0:02:12.4]} 21... Bc5 {[%clk 0:01:41.9]} 22. Rae1
{[%clk 0:01:58.1]} 22... Bd5 {[%clk 0:01:25.8]} 23. Qe5 {[%clk 0:01:55]} 23...
Rd6 {[%clk 0:01:19.6]} 24. Bxd4 {[%clk 0:01:42.9]} 24... Bxe4 {[%clk 0:01:15.3]}
25. Bxc5 {[%clk 0:01:39.4]} 25... bxc5 {[%clk 0:01:08.9]} 26. Rxe4 {[%clk
0:01:32.9]} 26... Ka7 {[%clk 0:01:02.3]} 27. Rc4 {[%clk 0:01:23]} 27... Rc8
{[%clk 0:00:55.4]} 28. b4 {[%clk 0:01:19.4]} 1-0

[Event "*** Titled Tuesday Blitz"]
[Site "Chess.com"]
[Date "2020.11.03"]
[Round "3"]
[White "Rakhimzhan_Alen"]
[Black "Sjakkerntobi"]
[Result "1-0"]
[WhiteElo "2626"]
[BlackElo "2401"]
[TimeControl "180+1"]
[EndTime "10:28:47 PST"]
[Termination "Rakhimzhan_Alen won by checkmate"]

1. d4 {[%clk 0:03:00.9]} 1... e6 {[%clk 0:02:53]} 2. c4 {[%clk 0:02:59]} 2...
Nf6 {[%clk 0:02:52.9]} 3. Nc3 {[%clk 0:02:58.7]} 3... c5 {[%clk 0:02:53.2]} 4.
d5 {[%clk 0:02:58.6]} 4... exd5 {[%clk 0:02:54.1]} 5. cxd5 {[%clk 0:02:59.2]}
5... d6 {[%clk 0:02:54.4]} 6. e4 {[%clk 0:02:59.7]} 6... g6 {[%clk 0:02:54.6]}
7. f4 {[%clk 0:03:00.3]} 7... Bg7 {[%clk 0:02:53.1]} 8. Bb5+ {[%clk 0:03:00.1]}
8... Nfd7 {[%clk 0:02:52.4]} 9. Nf3 {[%clk 0:02:59.8]} 9... O-O {[%clk
0:02:52.1]} 10. O-O {[%clk 0:02:59.9]} 10... a6 {[%clk 0:02:51.5]} 11. Bd3
{[%clk 0:03:00]} 11... b5 {[%clk 0:02:51.6]} 12. Kh1 {[%clk 0:02:58.9]} 12...
Re8 {[%clk 0:02:49.3]} 13. a3 {[%clk 0:02:58.4]} 13... c4 {[%clk 0:02:38.6]} 14.
Bc2 {[%clk 0:02:57.8]} 14... Nc5 {[%clk 0:02:38.7]} 15. Be3 {[%clk 0:02:53.3]}
15... Qc7 {[%clk 0:02:31.5]} 16. Bd4 {[%clk 0:02:52.5]} 16... f5 {[%clk
0:02:24.8]} 17. Bxg7 {[%clk 0:02:44.7]} 17... Qxg7 {[%clk 0:02:22.1]} 18. e5
{[%clk 0:02:43.6]} 18... Nbd7 {[%clk 0:02:04.4]} 19. Qd4 {[%clk 0:02:38.1]}
19... dxe5 {[%clk 0:01:33.2]} 20. fxe5 {[%clk 0:02:36.3]} 20... Rxe5 {[%clk
0:01:34.1]} 21. Nxe5 {[%clk 0:02:35]} 21... Qxe5 {[%clk 0:01:35]} 22. Qh4 {[%clk
0:02:25.7]} 22... Qf6 {[%clk 0:01:25.3]} 23. Qh6 {[%clk 0:02:20.7]} 23... Bb7
{[%clk 0:01:20.1]} 24. Rae1 {[%clk 0:02:17.5]} 24... Nb6 {[%clk 0:01:13.3]} 25.
Rxf5 {[%clk 0:02:13.6]} 25... Qd4 {[%clk 0:00:42.3]} 26. Rh5 {[%clk 0:01:48.7]}
26... gxh5 {[%clk 0:00:24.3]} 27. Bxh7+ {[%clk 0:01:46.7]} 27... Kf7 {[%clk
0:00:10]} 28. Qg6+ {[%clk 0:01:45.6]} 28... Kf8 {[%clk 0:00:09.6]} 29. Qg8#
{[%clk 0:01:46.2]} 1-0